Cogmind - Beta 10 X1 @@@ ROGUE MODE // 2020.06.02 @ 17:23:05 Player: Decinym Result: Destroyed by P-60 Hacker with Shock Rifle Performance ------------- Evolutions (1) 500 Regions Visited (5) 1000 Robots Destroyed (41) 205 Value Destroyed (1323) 1323 Prototype IDs (25) 500 Alien Tech Used (0) 0 Bonus (1482) 1482 TOTAL SCORE: 5010 Bonus ------- High Alert Combat Kills 266 Follower Combat Kills 1078 Aligned with FarCom 300 Friendly Fire -162 Cogmind --------- Core Integrity 0/400 Matter 104/300 Energy 87/100 System Corruption 5% Temperature Cool (0) Movement Hovering (116) Ox1 Location -9/Exiles Parts ------- > --- POWER (1) -------- (None) > --- PROPULSION (2) --- Gravmag System Gravmag System > --- UTILITY (4) ------ Medium Storage Unit Large Storage Unit Utility Shielding > --- WEAPON (2) ------- (None) > --- INVENTORY (14) --- Carbon-fiber Leg Combat Airjet Improved Heat Sink Improved Heat Sink Improved EM Shotgun Autogun Autogun Autogun Autogun Autogun Autogun Autogun Peak State ------------ > --- POWER ------------ Ion Engine > --- PROPULSION ------- Aluminum Leg Aluminum Leg > --- UTILITY ---------- Medium Storage Unit Large Storage Unit Experimental Sensor Array Utility Shielding > --- WEAPON ----------- Autogun Autogun > --- INVENTORY -------- Light Ion Engine Light Nuclear Core Aluminum Leg Improved Heat Sink Large Storage Unit Improved EM Shotgun Autogun Autogun Autogun Autogun Autogun Autogun Mini Grenade Launcher [Rating: 18] Favorites ----------- Power Ion Engine Engine Ion Engine Power Core Light Nuclear Core Propulsion Aluminum Leg Leg Aluminum Leg Hover Unit Gravmag System Utility Utility Shielding Device Structural Scanner Storage Large Storage Unit Processor Seismic Analyzer Protection Utility Shielding Weapon Autogun Energy Gun EM Pulse Gun Ballistic Gun Autogun Launcher Mini Grenade Launcher Build | -11 -10 -10 -9 -9 -9 ------- Run | Scr Mat Min Mat Min Exi Slots Evolved 2 | . . . 2 . . Power . | . . . . . . Propulsion . | . . . . . . Utility 2 | . . . 2 . . Weapon . | . . . . . . Parts Attached 25 | . . 4 8 3 10 Power 2 | . . . . 1 1 Engine 1 | . . . . 1 . Core 1 | . . . . . 1 Reactor . | . . . . . . Propulsion 9 | . . 1 . . 8 Treads . | . . . . . . Leg 6 | . . 1 . . 5 Wheel . | . . . . . . Hover 3 | . . . . . 3 Flight . | . . . . . . Utility 8 | . . 1 5 2 . Device 2 | . . . 1 1 . Storage 2 | . . . 2 . . Processor 1 | . . 1 . . . Hackware . | . . . . . . Protection 3 | . . . 2 1 . Artifact . | . . . . . . Weapon 6 | . . 2 3 . 1 Energy Gun 3 | . . 2 1 . . Energy Cannon . | . . . . . . Ballistic Gun 2 | . . . 2 . . Ballistic Cannon . | . . . . . . Launcher 1 | . . . . . 1 Special Weapon . | . . . . . . Impact Weapon . | . . . . . . Slashing Weapon . | . . . . . . Piercing Weapon . | . . . . . . Special Melee Weapon . | . . . . . . Unidentified Prototypes 2 | . . . 1 1 . Parts Lost 12 | . . 1 1 . 10 Power 2 | . . . . . 2 Propulsion 6 | . . 1 . . 5 Utility 1 | . . . . . 1 Weapon 3 | . . . 1 . 2 Highest Loss Streak 4 | . . 1 1 . 4 Average Slot Usage (%) 92 | . 85 89 96 99 89 Engine 10 | . 14 14 11 10 8 Leg 22 | . 28 26 22 22 18 Device 1 | . . . 7 . . Storage 18 | . 14 14 13 22 22 Processor 1 | . . 6 8 . . Protection 14 | . . . 12 21 17 Energy Gun 6 | . 14 21 16 . . Ballistic Gun 14 | . 14 7 4 22 15 Launcher 1 | . . . . . 3 Naked Turns . | . . . . . . Heaviest Build 39 | 12 12 13 39 39 37 Greatest Support 30 | 20 20 20 20 20 30 Greatest Overweight (x) 2 | . . 1 1 1 2 Average Overweight (x) . | . . . . 1 1 Largest Inventory Capacity 14 | . 6 6 14 14 14 Average Capacity 11 | . 6 6 9 14 14 Most Carried 14 | . 6 6 14 14 14 Average Carried 10 | . 5 6 8 13 12 Final Capacity 14 | 6 6 6 14 14 14 Final Carried 14 | 6 6 6 14 13 12 Class Distribution -------------------- 86% | Mutant 13% | Scavenger-Mutant Dominant Class ---------------- Mutant | -10/Materials Scavenger-Mutant | -10/Mines Scavenger-Mutant | -9/Materials Mutant | -9/Mines Mutant | -9/Exiles Resources | -11 -10 -10 -9 -9 -9 ----------- Run | Scr Mat Min Mat Min Exi Matter Collected 575 | 200 10 44 35 . 286 Remotely . | . . . . . . Salvage Created 905 | . 223 164 143 . 375 Parts 66 | . 12 17 13 . 24 Haulers Intercepted 1 | . . . 1 . . Recyclers Shooed 1 | . . . 1 . . Parts Field Recycled . | . . . . . . Retrieved Matter . | . . . . . . Parts Self-Destructed . | . . . . . . Prevented . | . . . . . . Kills | -11 -10 -10 -9 -9 -9 ------- Run | Scr Mat Min Mat Min Exi Combat Hostiles Destroyed 32 | . 4 5 . . 23 Guns 10 | . 3 5 . . 2 AOE 22 | . 1 . . . 21 Classes Destroyed 11 | . 3 2 2 . 4 Worker 1 | . 1 . . . . Builder 1 | . . . 1 . . Tunneler 2 | . . 1 1 . . Hauler 1 | . . . 1 . . Operator 3 | . 1 . 2 . . Swarmer 3 | . . 3 . . . Grunt 21 | . 4 2 1 . 14 Brawler 2 | . . . . . 2 Duelist 1 | . . . . . 1 Hunter 3 | . . . . . 3 Programmer 3 | . . . . . 3 Best Kill Streak 11 | . 4 3 2 . 11 Combat Bots Only 11 | . 2 3 . . 11 Max Kills in Single Turn 3 | . 1 2 3 . 3 Gunslinging 1 | . . 1 . . . Exploded 3 | . 1 . . . 3 Melee . | . . . . . . Uniques/NPCs Destroyed . | . . . . . . Combat | -11 -10 -10 -9 -9 -9 -------- Run | Scr Mat Min Mat Min Exi Damage Taken 1791 | . 234 76 103 . 1378 Core 444 | . 31 . 17 . 396 Absorbed by Shields . | . . . . . . Core Remaining (%) 93 | 100 . 87 . . . Volleys Fired 71 | . 15 7 11 3 35 Largest 2 | . 2 2 2 2 2 Hottest 105 | . 60 105 105 46 46 Shots Fired 105 | . 29 14 18 6 38 Gun 75 | . 29 14 18 6 8 Cannon . | . . . . . . Launcher 30 | . . . . . 30 Special . | . . . . . . Kinetic 32 | . 14 4 . 6 8 Thermal 20 | . . 6 14 . . Explosive 30 | . . . . . 30 Electromagnetic 23 | . 15 4 4 . . Robot Hit Streak 10 | . 5 3 6 10 1 Robot Miss Streak 4 | . 3 2 4 1 4 Penetration Max . | . . . . . . Secondary Targets 2 | . . 2 . . . Max Gunslinging Chain 1 | . . 1 . . . Shots Hit Robots 42 | . 16 7 11 5 3 Core Hits 80 | . 12 7 10 1 50 Critical Hits . | . . . . . . Critical Kills . | . . . . . . Critical Parts Destroyed . | . . . . . . Melee Attacks . | . . . . . . Impact . | . . . . . . Slashing . | . . . . . . Piercing . | . . . . . . Sneak Attacks . | . . . . . . Combat Hostiles . | . . . . . . Follow-up Attacks . | . . . . . . Damage Inflicted 2814 | . 377 115 315 95 1912 Guns 649 | . 206 115 208 87 33 Cannons . | . . . . . . Explosions 2157 | . 171 . 107 . 1879 Melee . | . . . . . . Ramming 8 | . . . . 8 . Kinetic 200 | . 56 24 . 87 33 Thermal 456 | . 171 37 248 . . Explosive 1879 | . . . . . 1879 Electromagnetic 271 | . 150 54 67 . . Impact . | . . . . . . Slashing . | . . . . . . Piercing . | . . . . . . Highest Corruption 5 | . 2 2 . . 5 Average Corruption 2 | . 2 2 . . 2 Corruption Purged . | . . . . . . Effects 8 | . 2 2 . . 4 Message Errors 4 | . 1 1 . . 2 Energy Discharges 2 | . . 1 . . 1 Data Loss (minor) 1 | . . . . . 1 Weapon Failures 1 | . 1 . . . . Overload Shots . | . . . . . . Overflow Damage 97 | . 72 . 18 . 7 Projectiles . | . . . . . . Explosions 97 | . 72 . 18 . 7 Melee . | . . . . . . Knockbacks . | . . . . . . Impact . | . . . . . . Kinetic . | . . . . . . Secondary . | . . . . . . Self-Inflicted Damage 141 | . 65 . 39 . 37 Shots 3 | . 1 . 1 . 1 Rammed . | . . . . . . Targets Rammed 1 | . . . . 1 . Kicked 1 | . . . . 1 . Crushed . | . . . . . . Highest Temperature 135 | . 89 135 72 6 12 Average Temperature 32 | . 32 49 26 4 6 Received Heat Transfer 246 | . 96 18 18 . 114 Siege Activations . | . . . . . . Robots Corrupted . | . . . . . . Combat Hostiles . | . . . . . . Parts Fried . | . . . . . . Impact Corruptions . | . . . . . . Robots Melted . | . . . . . . Combat Hostiles . | . . . . . . Parts Melted 3 | . . 1 2 . . Heat Transferred 559 | . 100 87 372 . . Parts Sabotaged . | . . . . . . Parts Stolen . | . . . . . . Parts Stripped . | . . . . . . Power Chain Reactions 1 | . . . 1 . . Missiles Intercepted . | . . . . . . Alert | -11 -10 -10 -9 -9 -9 ------- Run | Scr Mat Min Mat Min Exi Peak Influence 230 | . 208 230 193 75 . Average Influence 84 | . 77 127 136 51 . Maximum Alert Level 1 | . 1 1 . . . Low Security (%) 96 | . 93 83 100 100 . Level 1 3 | . 6 16 . . . Level 2 . | . . . . . . Level 3 . | . . . . . . Level 4 . | . . . . . . Level 5 . | . . . . . . High Security . | . . . . . . Max Security . | . . . . . . Squads Dispatched 4 | . 1 . 3 . . Investigation . | . . . . . . Extermination . | . . . . . . Reinforcement 4 | . 1 . 3 . . Assault . | . . . . . . Garrison . | . . . . . . Intercept . | . . . . . . Construction Impeded . | . . . . . . Haulers Reinforced . | . . . . . . Stealth | -11 -10 -10 -9 -9 -9 --------- Run | Scr Mat Min Mat Min Exi Distress Signals 2 | . . . 2 . . Communications Jammed . | . . . . . . Distress Signals . | . . . . . . Times Spotted 92 | . 8 5 6 . 73 Peak Tracking Total 23 | . 2 3 2 . 23 Tactical Retreats 2 | . . . . . 2 Traps | -11 -10 -10 -9 -9 -9 ------- Run | Scr Mat Min Mat Min Exi Traps Triggered 1 | . 1 . . . . Indirectly . | . . . . . . Trap Hack Attempts . | . . . . . . Triggered . | . . . . . . Disarmed . | . . . . . . Reprogrammed . | . . . . . . Reused . | . . . . . . Traps Extracted . | . . . . . . Installed . | . . . . . . Triggered . | . . . . . . Exploded 3 | . . . . . 3 Machines | -11 -10 -10 -9 -9 -9 ---------- Run | Scr Mat Min Mat Min Exi Machines Disabled 5 | . 2 1 1 . 1 Max in Single Turn 2 | . 2 1 1 . 1 Machines Sabotaged . | . . . . . . Garrisons Compromised . | . . . . . . Overloaded Fab Kills . | . . . . . . Fab Network Shutdowns . | . . . . . . Hacking | -11 -10 -10 -9 -9 -9 --------- Run | Scr Mat Min Mat Min Exi Machines Accessed 3 | . 1 . 1 . 1 Terminals 2 | . 1 . 1 . . Fabricators . | . . . . . . Repair Stations . | . . . . . . Recycling Units . | . . . . . . Scanalyzers . | . . . . . . Garrison Access . | . . . . . . Total Hacks 8 | . 4 . 3 . 1 Successful 4 | . 2 . 1 . 1 Failed 4 | . 2 . 2 . . Catastrophic . | . . . . . . Database Lockouts . | . . . . . . Manual 7 | . 3 . 3 . 1 Terminals 7 | . 4 . 3 . . Fabricators . | . . . . . . Repair Stations . | . . . . . . Recycling Units . | . . . . . . Scanalyzers . | . . . . . . Garrison Access . | . . . . . . Terminal Hacks 4 | . 2 . 1 . 1 Level Access Points 1 | . 1 . . . . Branch Access Points 1 | . . . 1 . . Recall Reinforcements 1 | . 1 . . . . EX-Prototype ID Bank 1 | . . . . . 1 Fabricator Hacks . | . . . . . . Repair Station Hacks . | . . . . . . Recycling Unit Hacks . | . . . . . . Scanalyzer . | . . . . . . Garrison Access Hacks . | . . . . . . Unauthorized Hacks . | . . . . . . Terminals . | . . . . . . Fabricators . | . . . . . . Repair Stations . | . . . . . . Recycling Units . | . . . . . . Scanalyzers . | . . . . . . Garrison Access . | . . . . . . Data Cores Recovered . | . . . . . . Used . | . . . . . . Hacking Detections 2 | . 1 . 1 . . Full Trace Events . | . . . . . . Feedback Events . | . . . . . . Feedback Blocked . | . . . . . . Robot Schematics Acquired . | . . . . . . Robots Built . | . . . . . . Matter . | . . . . . . Time . | . . . . . . Total Robot Build Rating . | . . . . . . Part Schematics Acquired . | . . . . . . Parts Built . | . . . . . . Matter . | . . . . . . Time . | . . . . . . Total Part Build Rating . | . . . . . . Parts Repaired . | . . . . . . Time . | . . . . . . Parts Recycled . | . . . . . . Recycled Matter . | . . . . . . Retrieved Matter . | . . . . . . Retrieved Components . | . . . . . . Parts Scanalyzed . | . . . . . . Part Schematics Acquired . | . . . . . . Parts Damaged . | . . . . . . Bothacking | -11 -10 -10 -9 -9 -9 ------------ Run | Scr Mat Min Mat Min Exi Used RIF Installer . | . . . . . . Robots Hacked . | . . . . . . Non-combat . | . . . . . . Combat . | . . . . . . Robot Hacks Applied . | . . . . . . Relay Couplers Released . | . . . . . . Robots Rewired . | . . . . . . Allies Hacked . | . . . . . . Hacks Repelled . | . . . . . . Allies | -11 -10 -10 -9 -9 -9 -------- Run | Scr Mat Min Mat Min Exi Total Allies 3 | . . 3 . . . Largest Group 3 | . . 3 3 2 2 Highest-Rated Group 40 | . . 40 40 32 32 Highest-Rated Ally 16 | . . 16 16 16 16 Total Orders . | . . . . . . Ally Attacks 113 | . . 7 12 . 94 Total Damage 4423 | . . 78 118 . 4227 Kills 33 | . . . 4 . 29 Allies Corrupted . | . . . . . . Allies Melted . | . . . . . . Turrets Deployed 3 | . . . . . 3 Intel | -11 -10 -10 -9 -9 -9 ------- Run | Scr Mat Min Mat Min Exi Robot Analysis Total . | . . . . . . Derelict Logs Recovered 1 | . . 1 . . . Drone Launches . | . . . . . . Drone Recoveries . | . . . . . . Exploration | -11 -10 -10 -9 -9 -9 ------------- Run | Scr Mat Min Mat Min Exi Turns Passed 1922 | . 284 160 285 580 613 Spaces Moved 1183 | 1 195 110 161 377 339 Core . | . . . . . . Treads . | . . . . . . Legs 1139 | 1 195 110 161 377 295 Wheels . | . . . . . . Hover 44 | . . . . . 44 Flight . | . . . . . . Fastest Speed 116 | 120 120 120 120 150 116 Average Speed 141 | 120 120 120 141 150 152 Slowest Speed 180 | 120 120 150 150 150 180 Overloaded Moves . | . . . . . . Propulsion Burnouts . | . . . . . . Robots Hopped . | . . . . . . Cave-ins Triggered . | . . . . . . Exploration Rate (%) 36 | 1 40 39 27 68 42 Regions Visited 5 Branch Regions 3 Pre-discovered Areas 1 | . . 1 . . . Known Exits Taken 2 | . . 1 1 . . Unknown Exits Taken 3 | 1 1 . . 1 . Scrap Searched . | . . . . . . Spaces Dug . | . . . . . . Terrain Destroyed 112 | . 23 . 3 . 86 Melee . | . . . . . . Projectile . | . . . . . . AOE 112 | . 23 . 3 . 86 Actions | -11 -10 -10 -9 -9 -9 --------- Run | Scr Mat Min Mat Min Exi Total 1334 | . 219 123 201 388 403 Wait 12 | . 4 . 6 . 2 Move 1178 | . 194 109 160 376 339 Hop . | . . . . . . Pick Up 25 | . 3 . 11 1 10 Fast Attach 9 | . . 4 4 1 . Attach 11 | . . . 2 2 7 Detach 2 | . . 1 . 1 . Swap 5 | . . . 2 . 3 Drop 20 | . 3 2 5 3 7 Fire 71 | . 15 7 11 3 35 Melee . | . . . . . . Ram . | . . . . . . Kick 1 | . . . . 1 . Crush . | . . . . . . Escape Stasis . | . . . . . . Rewire . | . . . . . . Trap . | . . . . . . Miscellaneous . | . . . . . . Route ------- -11/Scrapyard -10/Materials (discovered 4 exits: Mat x3 / [*Min]) -10/Mines -9/Materials (discovered 2 exits: *Min x2) -9/Mines -9/Exiles (discovered 1 exit: [*Min]) History --------- Turn | Location | Event 1 | -11/Scrapyard | Discovered new exit (range 0) 1 | -11/Scrapyard | Entered Materials 203 | -10/Materials | Identified exit to Materials 274 | -10/Materials | Discovered new exit (range 10) 285 | -10/Materials | Entered Mines 287 | -10/Mines | Assisted by bots powering up and referring to "LRC-V3" 317 | -10/Mines | Build established: Mutant 339 | -10/Mines | Learned location of Zion (-6) 424 | -10/Mines | Discovered exit to Materials (range 10) 445 | -10/Mines | Entered Materials 445 | -9/Materials | Accompanied by 3 allies 445 | -9/Materials | Evolved 2 slots: Utility x2 638 | -9/Materials | Identified exit to Mines 730 | -9/Materials | Entered Mines 730 | -9/Mines | Accompanied by 2 allies 743 | -9/Mines | Met a Derelict bent on vengeance 892 | -9/Mines | Found a damaged Exp. Sensor Array with a note attached 896 | -9/Mines | Found Prototype Device 898 | -9/Mines | Identified Exp. Sensor Array 1303 | -9/Mines | Deemed a non-threat by the Exiles lab entrance 1303 | -9/Mines | Discovered new exit (range 5) 1310 | -9/Mines | Entered Exiles 1310 | -9/Exiles | Accompanied by 2 allies 1345 | -9/Exiles | Met 8R-AWN 1372 | -9/Exiles | Met EX-HEX 1415 | -9/Exiles | Met EX-BIN 1436 | -9/Exiles | Aligned with FarCom system 1438 | -9/Exiles | Given EX-Vault access code 1472 | -9/Exiles | Opened EX-Vault 1481 | -9/Exiles | Found Deploy-a-Sentry 1485 | -9/Exiles | Found Deploy-a-Sentry 1487 | -9/Exiles | Found Deploy-a-Sentry 1521 | -9/Exiles | Warned to stay clear of 0b10 Research branches 1537 | -9/Exiles | Exiles lab attacked by MAIN.C 1593 | -9/Exiles | DAS Turret deployed 1602 | -9/Exiles | DAS Turret deployed 1614 | -9/Exiles | DAS Turret deployed 1646 | -9/Exiles | Discovered new exit (range 15) 1721 | -9/Exiles | Destroyed 11 combat bots 1803 | -9/Exiles | Core integrity fell below 50% 1847 | -9/Exiles | Lost 4 parts (1p2n1w) 1849 | -9/Exiles | Destroyed 10 combat bots 1874 | -9/Exiles | Core integrity fell below 20% 1923 | -9/Exiles | Destroyed by P-60 Hacker with Shock Rifle Last Messages --------------- 01881_ Rigged Nuclear Core explodes. 01881_ G-34 Mercenary destroyed. 01886_ Acquired Carbon-fiber Leg. 01888_ Lgt. Nuclear Core destroyed. 01891_ The unstable cave ceiling collapses. 01898_ Mni. Grenade Launcher destroyed. 01905_ Gravmag System destroyed. 01905_ Slug penetrates Earth. 01905_ H-55 Commando destroyed. 01907_ The unstable cave ceiling collapses. 01914_ Destroyed Aluminum Leg. 01916_ Destroyed Shock Rifle. 01916_ P-60 Hacker knocked back. 01917_ DAS Turret suffers critical hit. 01918_ Destroyed Lgt. Angular Momentum Engine. 01918_ P-60 Hacker knocked back. 01918_ Destroyed Gravmag System. 01918_ P-60 Hacker knocked back. 01920_ Destroyed Gravmag System. 01921_ DAS Turret suffers critical hit. Map ----- +----------------------------------------------------+ | " """#????????????????????????????????? | | " """#????????????????????????????????? | | # """"????????????????????????????????? | | # """#????????????????????????????????? | | #" "X" """?????????????????????????????????? | | #" """ #????????????????????????????????? | | #" """""""""#????????????????????????????????? | | #" ###########????????????????????????????????? | | "" #??????????????????????????????????????????? | | " #??????????????????????????????????????????? | | " ##?????????????????????????????????????????? | | " ##???###########??????????????????????????? | | #####"""""""""##?????????????????????????? | | " """ """"##????????????????????????? | | "" " #????????????????????????? | | " """#????????????###?????????? | | "a"#???????????## ##????????? | | " "##?????????## ###?#####? | | ""###???????# # ### ## | | """" """#?????### ## | | ###""" "###??### ## # # | | ??#####""" # #### = p # ### | | ??????##""" # * p g g [h | | ???????#"""" pg g g bb * | | ???????#"" = *t # = = | | ???????"""" @ t ## * | | ?????"" ;## ## | | ????" t ""### # # | | ??? #####?# ### # ### | | ??? ###????##??#### ### | | ??? " ####????????????####?? | | ??? "" """ ""#????????????????????? | | ??? ##""" " " ""#"aaaaaaa"##????????????????????? | | ??????####""" """##"""""""##?????????????????????? | | ?????????###""""#?#########??????????????????????? | | ???????????####??????????????????????????????????? | | ?????????????????????????????????????????????????? | | ?????????????????????????????????????????????????? | | ?????????????????????????????????????????????????? | | ?????????????????????????????????????????????????? | | ?????????????????????????????????????????????????? | | ?????????????????????????????????????????????????? | | ?????????????????????????????????????????????????? | | ?????????????????????????????????????????????????? | | ?????????????????????????????????????????????????? | | ?????????????????????????????????????????????????? | | ?????????????????????????????????????????????????? | | ?????????????????????????????????????????????????? | | ?????????????????????????????????????????????????? | | ?????????????????????????????????????????????????? | +----------------------------------------------------+ Best States ------------- Heat Dissipation 28 Energy Generation 14 Energy Capacity 250 Matter Stores 300 Matter Capacity 300 Sight Range 16 Terrain Scan Density 60 Armor Coverage 150 Utility Shielding 33 Evasion (%) 40 Item Schematics ----------------- None Robot Schematics ------------------ None Fabricated ------------ Nothing Alien Tech Used ----------------- None Achievements -------------- None Challenges ------------ None Game ------ Seed SubatomicCoolantMatrix Manual? 0 Play Time 00:18:36 Cumulative 300.5 hours Start 2020.06.02 @ 17:10:18 End 2020.06.02 @ 17:23:05 Sessions 1 Manual Loads 0 Difficulty Rogue Special Mode None Game No. 333 Rogue 333 Adventurer 0 Explorer 0 Win Type - Total 27 Types 16/3/2/1/2/0/3 Lore% 92 Gallery% 86 Achievement% 76 Wizard Run 0 Options --------- ASCII 0 Keyboard 0 Movement Arrows Keybinds 0 Fullscreen 2 Font 18/SmallcapsGlow Map View 76x50 Tactical HUD 1 Map Filters NONE Filters NONE Steam 1 RUN: 50ba43a3-1127-461f-8937-77191db9146c